bitfinex-derivatives/quotes_ETHF0:USTF0_20250518
["timestamp","ask_amount","ask_price","bid_price","bid_amount"]
[1747563846901,0.79757,2506.9,2506.7,4.498]
[1747563847101,1.2816,2506.8,2506.7,5.29561]
[1747563847510,0.79754,2507.0,2506.9,0.79754]
[1747563847709,0.79754,2506.9,2506.8,2.08775]
[1747563847906,1.2816,2507.0,2506.8,2.08775]
[1747563847907,1.2816,2507.0,2506.9,0.79754]
[1747563848210,2.07911,2507.0,2506.9,5.14574]
[1747563848406,2.07911,2507.0,2506.9,4.3482]
[1747563848609,2.07911,2507.0,2506.9,3.058]
[1747563849104,0.79758,2506.8,2506.7,2.08779]
[1747563849609,0.7976,2506.8,2506.6,1.43713]
[1747563849804,1.2999,2506.7,2506.6,0.79763]
[1747563850203,2.09754,2506.7,2506.6,0.79764]
[1747563850411,1.2999,2506.7,2506.6,0.79764]
[1747563850603,1.2999,2506.7,2506.6,2.05264]
[1747563852608,3.2078,2507.0,2506.9,0.79754]
[1747563853207,3.2078,2507.0,2506.9,3.85554]
[1747563853405,3.2078,2507.0,2506.9,5.85744]
[1747563855211,4.00531,2507.0,2506.9,5.0599]
[1747563855408,6.04791,2507.0,2506.9,3.058]
[1747563856311,0.79758,2506.8,2506.7,1.47878]
[1747563856613,2.11307,2506.9,2506.8,0.79758]
[1747563856914,0.79758,2506.8,2506.7,1.47878]
[1747563857117,2.11308,2506.8,2506.7,0.6812]
[1747563857315,2.11308,2506.8,2506.7,1.47881]
[1747563857611,2.11308,2506.8,2506.7,0.6812]
[1747563857816,0.79761,2506.7,2506.6,1.2431]
[1747563858015,0.79764,2506.6,2506.5,2.12175]
[1747563858214,0.79764,2506.6,2506.5,5.17975]
[1747563858516,0.79764,2506.6,2506.5,6.42285]
[1747563858715,2.04764,2506.6,2506.5,6.42285]
[1747563859616,1.25,2506.6,2506.5,6.42285]
[1747563861113,0.7976,2506.8,2506.7,0.79761]
[1747563861510,9.85056,2506.9,2506.8,0.79758]
[1747563861711,0.7976,2506.8,2506.7,0.79759]
[1747563861916,2.1199,2506.8,2506.7,0.79759]
[1747563862117,0.79761,2506.7,2506.6,5.21772]
[1747563862317,2.11991,2506.7,2506.6,3.058]
[1747563863112,0.79767,2506.5,2506.4,0.002]
[1747563863313,8.60067,2506.5,2506.4,0.002]
[1747563863515,0.79767,2506.5,2506.4,0.002]
[1747563863713,2.11997,2506.5,2506.4,0.002]
[1747563864315,2.74927,2506.5,2506.4,0.002]
[1747563868109,10.55227,2506.5,2506.4,0.002]
[1747563868721,10.55327,2506.5,2506.4,0.002]
[1747563870622,2.74927,2506.5,2506.4,0.002]
[1747563870825,10.55327,2506.5,2506.4,0.002]
[1747563871220,10.55327,2506.5,2506.4,3.06]
[1747563871523,1.9516,2506.5,2506.4,3.8577]
[1747563871822,2.74927,2506.5,2506.4,5.8911]
[1747563872615,1.3223,2506.5,2506.4,5.8911]
[1747563874221,2.11997,2506.5,2506.4,4.5208]
[1747563874427,2.11997,2506.5,2506.4,3.06]
[1747563874724,2.11997,2506.5,2506.4,3.8577]
[1747563874926,2.11997,2506.5,2506.4,3.94988003]
[1747563875829,3.2078,2506.7,2506.6,0.79764]
[1747563876033,13.10643,2506.7,2506.6,0.79764]
[1747563876628,0.79764,2506.6,2506.5,3.058]
[1747563876827,2.10884,2506.6,2506.5,3.058]
[1747563877127,2.10884,2506.6,2506.5,4.25370046]
[1747563877523,2.10884,2506.6,2506.5,5.05137046]
[1747563879545,2.10884,2506.6,2506.5,4.25370046]
[1747563880338,2.10884,2506.6,2506.5,1.19570046]
[1747563880835,0.79767,2506.5,2506.4,0.002]
[1747563881039,2.12717,2506.5,2506.4,0.09418003]
[1747563882747,9.93117,2506.5,2506.4,0.89188003]
[1747563883043,9.93117,2506.5,2506.4,0.09418003]
[1747563883840,2.12717,2506.5,2506.4,0.89188003]
[1747563884140,9.1335,2506.5,2506.4,3.94988003]
[1747563884335,1.3295,2506.5,2506.4,4.63828003]
[1747563885644,2.12717,2506.5,2506.4,3.94988003]
[1747563886341,2.12717,2506.5,2506.4,0.89188003]
[1747563887239,2.12717,2506.5,2506.4,3.94988003]
[1747563887839,2.12717,2506.5,2506.4,3.15218003]
[1747563888442,2.12717,2506.5,2506.4,3.94988003]
[1747563888643,2.12717,2506.5,2506.4,3.15218003]
[1747563889139,2.12717,2506.5,2506.4,3.94988003]
[1747563891145,1.3295,2506.5,2506.4,0.89188003]
[1747563891547,2.12717,2506.5,2506.4,0.09418003]
[1747563892546,17.73017,2506.5,2506.4,0.09418003]
[1747563894141,20.89934612,2506.5,2506.4,0.09418003]
[1747563895049,5.29634612,2506.5,2506.4,0.09418003]
[1747563895245,20.89934612,2506.5,2506.4,0.09418003]
[1747563895652,5.29634612,2506.5,2506.4,0.09418003]
[1747563895853,20.89934612,2506.5,2506.4,0.09418003]
[1747563897347,5.29634612,2506.5,2506.4,0.09418003]
[1747563897652,13.09834612,2506.5,2506.4,0.89188003]
[1747563897852,13.09834612,2506.5,2506.4,0.09418003]
[1747563898152,13.78444612,2506.5,2506.4,3.15218003]
[1747563899053,3.16917612,2506.5,2506.4,3.94988003]
[1747563899256,3.16917612,2506.5,2506.4,4.59268003]
[1747563899652,3.96684612,2506.5,2506.4,4.59268003]
[1747563899854,4.43597612,2506.5,2506.4,5.89078003]
[1747563900054,5.23364612,2506.5,2506.4,5.89078003]
[1747563900246,4.43597612,2506.5,2506.4,5.89078003]
[1747563900853,5.23364612,2506.5,2506.4,3.15218003]
[1747563901153,2.06447,2506.5,2506.4,3.94988003]
[1747563901456,3.2078,2506.7,2506.6,0.79764]
[1747563902148,3.2078,2506.7,2506.6,1.43074]
[1747563902550,4.00541,2506.7,2506.6,2.69234]
[1747563903255,5.35871,2506.7,2506.6,2.69234]
[1747563903759,2.15091,2506.7,2506.6,2.69234]
[1747563904657,2.15091,2506.7,2506.6,1.8947]
[1747563904855,0.79764,2506.6,2506.5,3.058]
[1747563905055,2.10884,2506.6,2506.5,3.058]
[1747563905254,2.10884,2506.6,2506.5,3.85567]
[1747563906366,1.3112,2506.6,2506.5,3.85567]
[1747563906851,1.3112,2506.6,2506.5,5.12767]
[1747563907052,4.00543,2506.7,2506.6,0.79764]
[1747563907257,4.00543,2506.7,2506.6,2.06964]
[1747563907459,4.00543,2506.7,2506.6,2.16182003]
[1747563907758,3.2078,2506.7,2506.6,2.16182003]
[1747563908759,3.2078,2507.0,2506.7,0.79761]
[1747563908954,3.16917612,2507.1,2506.8,3.95483]
[1747563909154,3.16917612,2507.1,2507.0,0.79751]
[1747563910062,4.53727612,2507.1,2507.0,0.79751]
[1747563910258,4.53727612,2507.1,2507.0,3.85551]
[1747563910457,2.16558,2507.1,2507.0,3.058]
[1747563910859,5.37338,2507.1,2507.0,3.058]
[1747563911056,2.16558,2507.1,2507.0,3.85551]
[1747563911263,1.3681,2507.1,2507.0,3.85551]
[1747563911862,1.3681,2507.1,2507.0,5.23541]
[1747563912064,12.3627,2507.4,2507.3,0.79742]
[1747563912065,4.5637,2507.4,2507.3,0.79742]
[1747563912366,0.79748,2507.1,2507.0,3.8555]
[1747563913162,0.79747,2507.2,2507.1,0.79747]
[1747563913964,1.3234,2507.3,2507.2,0.79745]
[1747563914864,1.3234,2507.3,2507.1,5.78686]
[1747563915064,2.12083,2507.3,2507.2,0.79745]
[1747563915761,0.79745,2507.2,2507.1,2.72887]
[1747563915957,2.07935,2507.2,2507.1,0.79747]
[1747563916759,1.2819,2507.2,2507.1,0.79747]
[1747563916955,1.2819,2507.2,2507.1,2.70457]
[1747563917160,13.16111,2507.4,2507.3,0.79742]
[1747563917564,3.8943,2507.4,2507.3,0.79742]
[1747563918066,0.6865,2507.4,2507.3,0.79742]
[1747563918364,0.6865,2507.4,2507.3,3.85542]
[1747563918761,9.89798,2507.5,2507.4,0.79739]
[1747563919159,9.89798,2507.5,2507.4,3.85539]
[1747563919364,9.89798,2507.5,2507.4,3.058]
[1747563920269,0.79748,2507.1,2507.0,0.79749]
[1747563920862,3.42838,2507.1,2507.0,0.79749]
[1747563921269,3.42838,2507.1,2507.0,3.85549]
[1747563923173,3.42838,2507.1,2507.0,0.79749]
[1747563923668,3.42838,2507.1,2506.8,0.6375]
[1747563923967,3.42838,2507.1,2506.7,14.92461]
[1747563923968,0.79758,2506.8,2506.7,4.00538]
[1747563925067,0.79757,2506.9,2506.8,0.79756]
[1747563925472,2.16823,2507.0,2506.9,0.79754]
[1747563926871,1.3707,2507.0,2506.9,0.79754]
[1747563927173,2.16821,2507.0,2506.9,0.79754]
[1747563927577,1.3707,2507.0,2506.9,0.79754]
[1747563928175,2.16821,2507.0,2506.9,3.85554]
[1747563929876,1.3707,2507.0,2506.9,3.85554]
[1747563930875,2.16821,2507.0,2506.9,3.85554]
[1747563931275,2.16821,2507.0,2506.9,0.79754]
[1747563932378,2.16821,2507.0,2506.9,3.85554]
[1747563933080,1.3707,2507.0,2506.9,3.85554]
[1747563934672,1.3707,2507.0,2506.9,3.94772003]
[1747563937378,1.3707,2507.0,2506.9,5.32022003]
[1747563938076,1.3707,2507.0,2506.9,3.94772003]
[1747563940678,1.3707,2507.0,2506.9,5.25192003]
[1747563941584,2.16821,2507.0,2506.9,3.94772003]
[1747563943671,1.3707,2507.0,2506.9,3.94772003]
[1747563944988,2.16821,2507.0,2506.9,3.15018003]
[1747563945179,2.16821,2507.0,2506.9,0.09218003]
[1747563946289,2.16821,2507.0,2506.9,0.88972003]
[1747563949191,2.16821,2507.0,2506.9,0.09218003]
[1747563955385,5.33738612,2507.0,2506.9,0.09218003]
[1747563956993,10.33738612,2507.0,2506.9,3e-08]
[1747563959298,20.88097,2506.5,2506.4,0.002]
[1747563960694,20.88197,2506.5,2506.4,0.002]
[1747563960886,13.08697,2506.5,2506.4,0.002]
[1747563961091,20.88197,2506.5,2506.4,0.002]
[1747563961496,13.08697,2506.5,2506.4,0.002]
[1747563963300,16.14497,2506.5,2506.4,0.002]
[1747563964095,20.3473,2506.5,2506.1,0.002]
[1747563964296,4.00557,2506.2,2506.1,0.002]
[1747563964497,11.80057,2506.2,2506.1,0.002]
[1747563965214,13.73537,2506.2,2506.1,0.002]
[1747563965502,0.79783,2506.0,2505.9,0.001]
[1747563965692,8.59483,2506.0,2505.9,0.001]
[1747563966103,0.79783,2506.0,2505.9,0.001]
[1747563966394,2.10932,2506.1,2505.9,0.001]
[1747563966599,7.797,2506.0,2505.9,0.79886]
[1747563967300,9.1065,2506.1,2506.0,0.79783]
[1747563967504,16.3908,2506.1,2506.0,0.79783]
[1747563967906,0.7978,2506.1,2506.0,0.79783]
[1747563968098,8.5958,2506.1,2506.0,0.6772]
[1747563970197,0.79783,2506.0,2505.9,0.001]
[1747563976400,1.44833,2506.0,2505.9,0.001]
[1747563979206,10.607,2505.9,2505.2,0.001]
[1747563979401,3.2078,2504.6,2503.7,18.59847224]
[1747563979600,4.00633,2503.8,2503.7,18.59847224]
[1747563979806,12.29533,2503.8,2503.7,18.59847224]
[1747563980013,17.30433,2503.8,2503.7,18.59847224]
[1747563980208,4.00633,2503.8,2503.7,18.59847224]
[1747563980402,12.53665495,2503.8,2503.7,18.59847224]
[1747563980912,13.84495495,2503.8,2503.7,18.59847224]
[1747563981107,5.53195495,2503.8,2503.7,18.59847224]
[1747563981314,22.06583721,2503.8,2503.7,18.59847224]
[1747563981614,27.06583721,2503.8,2503.7,18.59847224]
[1747563982202,27.06583721,2503.8,2503.7,15.82871615]
[1747563982405,10.53283721,2503.8,2503.7,13.94623615]
[1747563982606,27.06683721,2503.8,2503.7,12.28296615]
[1747563983015,27.06683721,2503.8,2503.7,2.65479941]
[1747563983206,0.79856,2503.7,2503.6,0.001]
[1747563983410,1.66888785,2503.7,2503.6,0.001]
[1747563983609,18.22088785,2503.7,2503.6,0.001]
[1747563983815,18.24088785,2503.7,2503.6,0.001]
[1747563984315,1.66888785,2503.7,2503.6,0.001]
[1747563984516,18.23688785,2503.7,2503.6,0.001]
[1747563984716,18.24088785,2503.7,2503.6,0.001]
[1747563985216,18.24042649,2503.7,2503.6,0.001]
[1747563985416,10.01242649,2503.7,2503.6,0.001]
[1747563985612,9.14056,2503.7,2503.6,0.001]
[1747563985918,9.14056,2503.7,2503.6,1.3564]
[1747563988317,3.2078,2503.8,2503.7,0.79856]
[1747563988714,3.2078,2503.8,2503.7,5.79856]
[1747563990419,3.2078,2503.8,2503.7,0.79856]
[1747563991818,3.2078,2503.8,2503.7,5.79856]
[1747563994223,3.2078,2504.1,2504.0,0.79844]
[1747563994425,4.00624,2504.1,2504.0,0.79844]
[1747563994622,3.2078,2504.1,2504.0,0.79844]
[1747563995127,3.2078,2504.1,2504.0,3.85644]
[1747563995621,4.00624,2504.1,2504.0,3.85644]
[1747563996928,3.2078,2504.1,2504.0,3.85644]
[1747563997825,4.00624,2504.1,2504.0,3.85644]
[1747563998026,3.2078,2504.1,2504.0,3.85644]
[1747563999030,4.00624,2504.1,2504.0,3.85644]
[1747563999330,3.2078,2504.1,2504.0,3.85644]
[1747564000233,4.00624,2504.1,2504.0,3.85644]
[1747564001031,3.2078,2504.1,2504.0,3.85644]
[1747564002735,4.00624,2504.1,2504.0,3.85644]
[1747564002941,3.2078,2504.1,2504.0,3.85644]
[1747564007448,3.42684352,2504.1,2504.0,3.85644]
[1747564007839,3.2078,2504.4,2504.3,0.79837]
[1747564008042,3.4268408,2504.4,2504.3,0.79837]
[1747564008250,3.4268408,2504.4,2504.3,3.85637]
[1747564008853,3.4268408,2504.4,2504.3,4.53077]
[1747564010750,3.4268408,2504.4,2504.3,5.85267]
[1747564011134,3.4268408,2504.4,2504.3,2.79467]
[1747564011341,4.61185687,2504.4,2504.3,2.79467]
[1747564011634,4.61185687,2504.4,2504.3,2.12027]
[1747564012246,4.61185687,2504.4,2504.3,5.17827]
[1747564012447,4.61242447,2504.4,2504.3,5.17827]
[1747564012847,4.39281607,2504.4,2504.3,5.17827]
[1747564013144,4.61242279,2504.4,2504.3,5.85357]
[1747564014349,4.61242279,2504.4,2504.3,5.17827]
[1747564014842,4.61259146,2504.4,2504.3,5.17827]
[1747564015050,5.92299146,2504.4,2504.3,5.17827]
[1747564015237,5.92299146,2504.4,2504.3,2.12027]
[1747564016149,5.92299146,2504.4,2504.3,5.17827]
[1747564016349,6.56919146,2504.4,2504.3,3.85637]
[1747564016743,6.56928961,2504.4,2504.3,3.85637]
[1747564017143,6.56928961,2504.4,2504.3,0.79837]
[1747564017546,6.95671348,2504.4,2504.3,0.79837]
[1747564018152,6.95671348,2504.4,2504.3,3.85637]
[1747564018453,7.75505348,2504.4,2504.3,3.85637]
[1747564018648,7.7553375,2504.4,2504.3,3.058]
[1747564018951,6.9569975,2504.4,2504.3,3.85637]
[1747564020049,7.7553375,2504.4,2504.3,3.85637]
[1747564020249,6.9569975,2504.4,2504.3,3.85637]
[1747564020448,6.95700634,2504.4,2504.3,3.85637]
[1747564020650,7.75534634,2504.4,2504.3,3.85637]
[1747564020950,8.54156631,2504.4,2504.3,3.85637]
[1747564023856,7.74322631,2504.4,2504.3,3.85637]
[1747564024052,5.78662631,2504.4,2504.3,3.85637]
[1747564024750,7.11472631,2504.4,2504.3,3.85637]
[1747564025358,7.11486362,2504.4,2504.3,3.85637]
[1747564025758,5.78676362,2504.4,2504.3,3.85637]
[1747564026158,5.78676362,2504.4,2504.3,3.94855003]
[1747564027359,5.786783,2504.4,2504.3,3.94855003]
[1747564028352,7.102483,2504.4,2504.3,3.94855003]
[1747564028657,5.786783,2504.4,2504.3,3.94855003]
[1747564029055,5.77855834,2504.4,2504.3,3.94855003]
[1747564029256,5.77851921,2504.4,2504.3,3.94855003]
[1747564029562,6.57685921,2504.4,2504.3,3.15018003]
[1747564030461,6.57685921,2504.4,2504.3,3.94855003]
[1747564030958,4.2181993,2504.4,2504.3,3.94855003]
[1747564032560,4.21826157,2504.4,2504.3,3.94855003]
[1747564032963,4.21826076,2504.4,2504.3,3.94855003]
[1747564033155,4.21826076,2504.4,2504.3,3.15018003]
[1747564033359,4.21826076,2504.4,2504.3,3.94855003]
[1747564033962,5.50726076,2504.4,2504.3,3.94855003]
[1747564034359,5.50726076,2504.4,2504.3,3.15018003]
[1747564034559,5.50726076,2504.4,2504.3,3.94855003]
[1747564034762,5.50729927,2504.4,2504.3,3.94855003]
[1747564035161,5.28691534,2504.4,2504.3,3.94855003]
[1747564035369,5.50735303,2504.4,2504.3,3.94855003]
[1747564036869,8.67652915,2504.4,2504.3,3.94855003]
[1747564037569,8.67652915,2504.4,2504.3,3.15018003]
[1747564038971,8.67652915,2504.4,2504.3,3.94855003]
[1747564039166,21.81152915,2504.4,2504.3,3.15018003]
[1747564040674,22.60382318,2504.4,2504.3,3.15018003]
[1747564042269,22.60382318,2504.4,2504.3,0.09218003]
[1747564042469,22.60371865,2504.4,2504.3,0.09218003]
[1747564043475,30.76871865,2504.4,2504.3,0.09218003]
[1747564044276,25.76859495,2504.4,2504.3,3.15018003]
[1747564045273,25.75859495,2504.4,2504.3,3.15018003]
[1747564045670,25.75759495,2504.4,2504.3,3.15018003]
[1747564046278,25.75757313,2504.4,2504.3,3.15018003]
[1747564047978,25.75758502,2504.4,2504.3,3.15018003]
[1747564048680,26.751768,2504.4,2504.3,3.15018003]
[1747564048881,26.732768,2504.4,2504.3,3.15018003]
[1747564049981,26.73277829,2504.4,2504.3,3.15018003]
[1747564051881,26.73280668,2504.4,2504.3,3.15018003]
[1747564053782,26.73290325,2504.4,2504.3,3.15018003]
[1747564055382,26.73289788,2504.4,2504.3,3.15018003]
[1747564055578,26.73289592,2504.4,2504.3,3.15018003]
[1747564055777,10.46289592,2504.4,2504.3,3.15018003]
[1747564055977,26.69589592,2504.4,2504.3,3.15018003]
[1747564057082,23.49632058,2504.4,2504.3,3.15018003]
[1747564057283,26.70412058,2504.4,2504.3,3.15018003]
[1747564057583,10.47112058,2504.4,2504.3,3.15018003]
[1747564057780,26.69312058,2504.4,2504.3,3.15018003]
[1747564058177,10.47112058,2504.4,2504.3,3.15018003]
[1747564058372,10.47112058,2504.4,2504.3,3.94855003]
[1747564058578,17.25112058,2504.4,2504.3,6.00665003]
[1747564059285,17.25120718,2504.4,2504.3,6.00665003]
[1747564060787,8.1880242,2504.4,2504.3,6.00665003]
[1747564061187,8.18812538,2504.4,2504.3,6.00665003]
[1747564062891,7.38978538,2504.4,2504.3,6.00665003]
[1747564063088,7.38987646,2504.4,2504.3,6.00665003]
[1747564063587,7.38987646,2504.4,2504.3,11.00665003]
[1747564064986,7.38992229,2504.4,2504.3,11.00665003]
[1747564065193,3.42845214,2504.4,2504.3,11.00665003]
[1747564065391,3.42845214,2504.4,2504.3,6.00665003]
[1747564065692,3.42845828,2504.4,2504.3,6.00665003]
[1747564066699,0.99418298,2504.6,2504.5,0.79831]
[1747564067100,0.99418298,2504.6,2504.5,8.85631]
[1747564067303,0.99418298,2504.6,2504.5,9.52121]
[1747564068196,0.99418298,2504.8,2504.7,0.79824]
[1747564072099,0.7982,2504.9,2504.8,0.79821]
[1747564073701,4.00596,2505.0,2504.9,0.79818]
[1747564076809,3.2078,2505.0,2504.9,0.79818]
[1747564078505,4.00595,2505.0,2504.9,0.79818]
[1747564078706,5.58057222,2505.0,2504.9,0.79818]
[1747564079009,5.00450015,2505.0,2504.9,0.79818]
[1747564080110,5.00446879,2505.0,2504.9,0.79818]
[1747564081510,5.00449118,2505.0,2504.9,0.79818]
[1747564082406,2.59484118,2505.0,2504.9,0.79818]
[1747564082612,1.79669118,2505.0,2504.9,0.79818]
[1747564083112,2.59482896,2505.0,2504.9,0.79818]
[1747564083413,8.49042896,2505.0,2504.9,0.79818]
[1747564084102,11.54842896,2505.0,2504.9,0.79818]
[1747564084301,0.79818,2504.9,2504.8,2.15379]
[1747564084513,0.79824,2504.8,2504.7,0.79824]
[1747564084812,1.01114103,2504.8,2504.7,0.79824]
[1747564085011,0.79828,2504.7,2504.6,0.79825]
[1747564085210,2.2986795,2504.7,2504.6,0.79825]
[1747564085402,2.29873368,2504.7,2504.6,0.79825]
[1747564085603,1.50045368,2504.7,2504.5,1.3565]
[1747564085805,0.79834,2504.5,2504.4,0.79833]
[1747564086001,1.01129368,2504.5,2504.4,0.79833]
[1747564086209,2.29879368,2504.5,2504.4,0.79833]
[1747564086413,1.50045368,2504.5,2504.4,0.79833]
[1747564087003,1.50036027,2504.5,2504.4,0.79833]
[1747564087205,1.50036027,2504.5,2504.4,3.85633]
[1747564088410,3.87602716,2504.5,2504.4,3.85633]
[1747564089014,3.87615454,2504.5,2504.4,3.85633]
[1747564089317,3.87615454,2504.5,2504.4,0.79833]
[1747564089614,3.87615454,2504.5,2504.4,2.04313]
[1747564090011,4.67446454,2504.5,2504.4,2.04313]
[1747564092320,4.67446454,2504.5,2504.4,1.2448]
[1747564092513,0.79834,2504.4,2504.3,4.00616]
[1747564092717,0.7984,2504.2,2504.1,0.79844]
[1747564093017,0.79847,2504.1,2504.0,0.79845]
[1747564093218,2.83838165,2504.1,2504.0,3.85645]
[1747564094021,3.63682165,2504.1,2504.0,3.85645]
[1747564094212,2.83838165,2504.1,2504.0,3.85645]
[1747564094417,0.21308165,2504.1,2504.0,5.15385]
[1747564094617,0.79838,2504.3,2504.0,5.15385]
[1747564094618,2.37566689,2504.2,2504.1,0.79844]
[1747564094818,2.5887657,2504.2,2504.1,2.09584]
[1747564096623,2.58878099,2504.2,2504.1,2.09584]
[1747564097525,0.2131141,2504.2,2504.1,2.09584]
[1747564098518,2.37566689,2504.3,2504.2,0.7984]
[1747564098716,2.5887497,2504.3,2504.2,2.0617]
[1747564100123,3.3871197,2504.3,2504.2,2.0617]
[1747564100324,4.68526606,2504.3,2504.2,2.0617]
[1747564101219,0.7984,2504.2,2504.1,3.94859003]
[1747564101428,2.30962917,2504.2,2504.1,3.15018003]
[1747564102223,2.30960142,2504.2,2504.1,0.09218003]
[1747564102720,2.30960142,2504.2,2504.1,0.89062003]
[1747564103030,4.68526831,2504.2,2504.1,0.89062003]
[1747564103924,4.68526831,2504.2,2504.1,0.09218003]
[1747564104124,4.68523983,2504.2,2504.1,0.09218003]
[1747564105418,4.68523983,2504.2,2504.1,0.89062003]
[1747564105923,2.30957294,2504.2,2504.1,0.89062003]
[1747564106124,2.30954813,2504.2,2504.1,0.89062003]
[1747564108027,2.3096781,2504.2,2504.1,0.89062003]
[1747564109922,2.30973767,2504.2,2504.1,0.89062003]
[1747564110831,2.30973767,2504.2,2504.1,0.09218003]
[1747564111632,2.30975024,2504.2,2504.1,0.09218003]
[1747564113633,2.30979795,2504.2,2504.1,0.09218003]
[1747564114132,2.62055018,2504.2,2504.1,0.09218003]
[1747564114324,2.62087855,2504.2,2504.1,0.09218003]
[1747564115431,2.62086131,2504.2,2504.1,0.09218003]
[1747564117438,2.62090587,2504.2,2504.1,0.09218003]
[1747564117939,2.31015364,2504.2,2504.1,0.09218003]
[1747564119240,2.31015719,2504.2,2504.1,0.09218003]
[1747564119730,1.99619,2504.0,2503.6,0.001]
[1747564119931,0.79856,2503.7,2503.6,0.7996]
[1747564120241,1.01221719,2503.7,2503.6,0.7996]
[1747564120441,2.26871719,2503.7,2503.6,0.001]
[1747564121143,2.26868365,2503.7,2503.6,0.001]
[1747564122640,2.26866976,2503.7,2503.6,0.001]
[1747564122941,2.26866505,2503.7,2503.6,0.001]
[1747564124542,5.44275948,2503.7,2503.6,0.001]
[1747564124842,5.44268828,2503.7,2503.6,0.001]
[1747564128745,5.44262926,2503.7,2503.6,0.001]
[1747564129645,10.44262926,2503.7,2503.6,0.09318003]
[1747564130148,26.26762926,2503.7,2503.6,0.09318003]
[1747564130539,23.09353483,2503.7,2503.6,0.09318003]
[1747564131547,1.9965,2503.6,2503.2,0.002]
[1747564131749,4.00649,2503.3,2503.2,0.002]
[1747564132042,19.96496483,2503.3,2503.2,0.002]
[1747564132443,19.96493765,2503.3,2503.2,0.002]
[1747564133945,32.78998765,2503.3,2502.6,0.001]
[1747564134250,3.2078,2502.7,2502.6,0.79991]
[1747564134440,11.2941207,2502.7,2502.6,2.79411]
[1747564134642,12.0930007,2502.7,2502.6,1.3421]
[1747564134848,14.6726007,2502.7,2502.6,1.3421]
[1747564135049,11.9264207,2502.7,2502.6,1.3421]
[1747564135252,11.2941207,2502.7,2502.6,1.3421]
[1747564135547,11.2941207,2502.7,2502.6,2.14102]
[1747564136044,11.2938858,2502.7,2502.6,1.3421]
[1747564136343,11.2948858,2502.7,2502.6,2.14101]
[1747564136643,13.66990189,2502.7,2502.6,2.14101]
[1747564137646,14.46878189,2502.7,2502.6,1.3421]
[1747564137943,14.4686952,2502.7,2502.6,1.3421]
[1747564138343,12.09367911,2502.7,2502.6,2.14101]
[1747564138544,12.09367911,2502.7,2502.6,1.3421]
[1747564138745,12.09367911,2502.7,2502.6,2.14101]
[1747564138946,11.29479911,2502.7,2502.6,2.14101]
[1747564139147,12.09367911,2502.7,2502.6,1.3421]
[1747564139647,12.09367911,2502.7,2502.6,0.001]
[1747564139849,14.73085367,2502.7,2502.6,0.001]
[1747564140044,12.09455367,2502.7,2502.6,0.001]
[1747564140246,21.59626513,2502.7,2502.6,1.3652]
[1747564140843,13.67626513,2502.7,2502.6,2.16411]
[1747564141044,13.67626513,2502.7,2502.6,1.3652]
[1747564141755,13.67626513,2502.7,2502.6,2.16412]
[1747564142256,13.67626513,2502.7,2502.6,1.3652]
[1747564142557,5.80126513,2502.7,2502.6,1.3652]
[1747564142755,13.67626513,2502.7,2502.6,1.3652]
[1747564143454,13.67626513,2502.7,2502.6,2.16411]
[1747564144057,13.67626513,2502.7,2502.6,1.3652]
[1747564144845,12.87738513,2502.7,2502.6,2.25630003]
[1747564145350,13.67626513,2502.7,2502.6,2.25630003]
[1747564146457,5.00238513,2502.7,2502.6,2.25630003]
[1747564147258,5.80126513,2502.7,2502.6,2.25630003]
[1747564148161,5.00238513,2502.7,2502.6,2.25630003]
[1747564148351,1.79458513,2502.7,2502.6,5.46410003]
[1747564148855,0.21287367,2502.7,2502.6,5.46410003]
[1747564149642,0.21287367,2502.7,2502.6,10.46410003]
[1747564150553,2.37501609,2502.8,2502.7,0.79888]
[1747564150750,2.37501609,2502.8,2502.7,2.79858]
[1747564150959,2.37501609,2502.8,2502.7,3.47208]
[1747564152159,1.58332266,2502.8,2502.7,3.47208]
[1747564155160,4.00662,2503.0,2502.9,0.79882]
[1747564155555,3.2078,2503.0,2502.9,0.79882]
[1747564156354,3.2078,2503.0,2502.9,3.85682]
[1747564157252,5.58744914,2503.0,2502.9,3.85682]
[1747564159056,2.37964914,2503.0,2502.9,3.85682]
[1747564160268,2.37964914,2503.0,2502.9,3.94900003]
[1747564162362,2.58642801,2503.0,2502.9,3.94900003]
[1747564165865,2.5865045,2503.0,2502.9,3.94900003]
[1747564166065,3.9681045,2503.0,2502.9,3.94900003]
[1747564167773,4.7668945,2503.0,2502.9,3.94900003]
[1747564169570,3.9681045,2503.0,2502.9,3.94900003]
[1747564169871,4.7668945,2503.0,2502.9,3.15018003]
[1747564170962,2.38724536,2503.0,2502.9,3.15018003]
[1747564171266,2.18039,2503.0,2502.9,3.94900003]
[1747564171569,2.38730132,2503.0,2502.9,3.94900003]
[1747564172073,2.38730132,2503.0,2502.9,3.15018003]
[1747564172368,5.59510132,2503.0,2502.9,3.15018003]
[1747564173171,5.59511036,2503.0,2502.9,3.15018003]
[1747564175172,5.59517833,2503.0,2502.9,3.15018003]
[1747564176274,8.76604696,2503.0,2502.9,3.15018003]
[1747564176475,9.44034696,2503.0,2502.9,3.15018003]
[1747564177576,17.30834696,2503.0,2502.9,3.15018003]
[1747564178973,14.13751995,2503.0,2502.9,3.15018003]
[1747564179174,14.13751995,2503.0,2502.9,0.09218003]
[1747564181278,14.13751995,2503.0,2502.9,3.15018003]
[1747564182180,14.13751995,2503.0,2502.9,0.09218003]
[1747564182571,19.13751995,2503.0,2502.9,0.09218003]
[1747564183481,14.13751995,2503.0,2502.9,0.09218003]
[1747564184581,19.13751995,2503.0,2502.9,0.09218003]
[1747564186475,23.10797404,2503.0,2502.9,0.09218003]
[1747564186676,0.79888,2502.7,2502.6,0.001]
[1747564186875,12.08343213,2502.7,2502.6,0.001]
[1747564187681,14.08183213,2502.7,2502.6,0.001]
[1747564188281,14.08181352,2502.7,2502.6,0.001]
[1747564189275,14.08192721,2502.7,2502.6,0.001]
[1747564189477,17.25949495,2502.7,2502.6,0.001]
[1747564189779,17.25949495,2502.7,2502.6,0.09318003]
[1747564190178,17.2594884,2502.7,2502.6,0.09318003]
[1747564192484,25.1274884,2502.7,2502.6,0.09318003]